bitfinex/quotes_SOLUSD_20251118
["timestamp","ask_amount","ask_price","bid_price","bid_amount"]
[1763428425145,27.23226509,132.09,132.07,9.78882769]
[1763428425348,18.12096,132.09,132.07,10.50882769]
[1763428425646,27.23226509,132.09,132.06,9.98882769]
[1763428425847,27.23226509,132.09,132.06,10.70882769]
[1763428426288,27.23226509,132.09,132.07,0.72]
[1763428426460,18.12096,132.09,132.07,0.72]
[1763428426778,9.11130509,132.1,132.07,0.72]
[1763428427086,9.11130509,132.1,132.06,9.98882769]
[1763428427087,9.11130509,132.08,132.06,9.98882769]
[1763428427256,9.11130509,132.08,132.06,0.2]
[1763428427575,9.11130509,132.08,132.06,0.92]
[1763428428777,9.11130509,132.08,132.06,0.2]
[1763428428962,9.11130509,132.07,132.06,0.2]
[1763428429148,9.11130509,132.07,132.06,0.92]
[1763428429481,9.78130509,132.07,132.06,0.2]
[1763428429652,9.11130509,132.07,132.06,0.2]
[1763428431983,27.23226509,132.09,132.06,0.92]
[1763428432356,9.11130509,132.09,132.06,0.92]
[1763428432754,23.85284743,132.09,132.06,0.92]
[1763428433251,23.85284743,132.09,132.08,9.78882769]
[1763428434176,18.12096,132.09,132.08,0.72]
[1763428434373,23.85284743,132.09,132.06,0.2]
[1763428434550,23.85284743,132.09,132.07,9.78882769]
[1763428434751,18.12096,132.09,132.07,9.78882769]
[1763428434954,5.73188743,132.11,132.08,0.72]
[1763428435172,6.40188743,132.11,132.07,10.50882769]
[1763428435379,5.73188743,132.1,132.07,10.50882769]
[1763428435765,5.73188743,132.1,132.07,9.78882769]
[1763428435953,5.73188743,132.1,132.08,0.72]
[1763428436857,5.73188743,132.1,132.07,16.00444952]
[1763428437168,5.73188743,132.1,132.07,16.72444952]
[1763428437364,5.73188743,132.09,132.07,9.78882769]
[1763428437875,5.73188743,132.1,132.07,10.50882769]
[1763428438258,5.73188743,132.1,132.07,16.72444952]
[1763428438453,18.12096,132.12,132.08,0.72]
[1763428438692,5.73188743,132.1,132.08,0.72]
[1763428440459,18.79096,132.12,132.08,0.72]
[1763428440664,23.85284743,132.12,132.08,0.72]
[1763428440861,18.12096,132.13,132.09,9.78882769]
[1763428441063,23.85284743,132.13,132.09,9.78882769]
[1763428441260,23.85284743,132.13,132.08,6.93562183]
[1763428441261,5.73188743,132.1,132.08,6.93562183]
[1763428441474,5.73188743,132.1,132.08,6.21562183]
[1763428441668,5.73188743,132.09,132.07,16.00444952]
[1763428442068,5.73188743,132.08,132.07,9.78882769]
[1763428442285,6.40188743,132.08,132.06,9.98882769]
[1763428442472,18.79096,132.08,132.06,9.98882769]
[1763428442674,5.73188743,132.07,132.06,0.2]
[1763428443897,6.40188743,132.07,132.06,0.2]
[1763428444072,5.73188743,132.07,132.06,0.2]
[1763428444265,5.73188743,132.08,132.06,0.2]
[1763428444467,18.12096,132.12,132.06,0.92]
[1763428444670,5.73188743,132.09,132.08,9.78882769]
[1763428444960,5.73188743,132.12,132.08,16.00444952]
[1763428445164,0.67,132.16,132.1,9.78882769]
[1763428445388,0.67,132.16,132.12,9.78882769]
[1763428445389,5.73188743,132.14,132.12,9.78882769]
[1763428445767,5.73188743,132.14,132.12,10.50882769]
[1763428446165,5.73188743,132.14,132.12,9.78882769]
[1763428446375,6.40188743,132.13,132.11,9.78882769]
[1763428446569,18.12096,132.15,132.11,9.78882769]
[1763428446570,5.73188743,132.12,132.11,9.78882769]
[1763428446771,0.67,132.14,132.11,9.78882769]
[1763428446985,0.67,132.14,132.11,16.72444952]
[1763428447264,5.73188743,132.14,132.11,16.00444952]
[1763428447465,5.73188743,132.13,132.11,16.00444952]
[1763428448070,5.73188743,132.13,132.11,16.72444952]
[1763428448483,5.73188743,132.13,132.11,16.00444952]
[1763428448678,5.73188743,132.12,132.11,9.78882769]
[1763428449070,5.73188743,132.13,132.11,16.00444952]
[1763428449486,0.67,132.14,132.11,16.00444952]
[1763428449776,5.73188743,132.13,132.11,16.00444952]
[1763428450282,5.73188743,132.13,132.12,6.21562183]
[1763428450467,18.12096,132.19,132.12,6.21562183]
[1763428450468,5.73188743,132.14,132.12,6.93562183]
[1763428450781,0.67,132.18,132.12,6.93562183]
[1763428450782,2.3558448,132.16,132.12,6.93562183]
[1763428450983,2.3558448,132.16,132.14,9.78882769]
[1763428451187,2.3558448,132.16,132.14,16.00444952]
[1763428452103,2.3558448,132.16,132.15,6.21562183]
[1763428452579,2.3558448,132.16,132.14,10.45882769]
[1763428452580,3.0758448,132.16,132.14,16.00444952]
[1763428452776,3.0758448,132.15,132.14,9.78882769]
[1763428452977,3.0758448,132.15,132.12,6.21562183]
[1763428453170,0.72,132.15,132.13,9.78882769]
[1763428453369,3.0758448,132.14,132.13,9.78882769]
[1763428454280,23.5526496,132.14,132.11,6.21562183]
[1763428454489,29.900184,132.12,132.11,6.21562183]
[1763428454696,20.4768048,132.12,132.09,6.21562183]
[1763428454992,18.84096,132.12,132.08,18.09882146]
[1763428455193,18.84096,132.12,132.11,9.78882769]
[1763428455592,18.84096,132.12,132.09,16.02866265]
[1763428455795,0.72,132.11,132.09,6.23983496]
[1763428455985,0.72,132.11,132.1,9.78882769]
[1763428456300,6.45067385,132.11,132.1,9.78882769]
[1763428457078,18.12096,132.1,132.08,6.23983496]
[1763428457306,18.84096,132.1,132.09,9.78882769]
[1763428458214,0.72,132.1,132.09,9.78882769]
[1763428458377,6.45067385,132.1,132.09,9.78882769]
[1763428460100,6.45067385,132.1,132.09,6.23983496]
[1763428460286,6.45067385,132.1,132.08,16.02866265]
[1763428460487,24.54163385,132.09,132.08,16.02866265]
[1763428461287,18.12096,132.09,132.08,16.72866265]
[1763428461503,23.85163385,132.09,132.08,16.02866265]
[1763428462717,5.73067385,132.09,132.08,16.02866265]
[1763428463006,5.73067385,132.1,132.08,9.78882769]
[1763428463304,0.69,132.11,132.08,18.09882146]
[1763428463514,5.73067385,132.1,132.08,18.09882146]
[1763428464080,5.73067385,132.09,132.08,18.09882146]
[1763428464692,5.73067385,132.09,132.08,9.78882769]
[1763428469210,23.85163385,132.09,132.08,9.78882769]
[1763428469408,24.54163385,132.09,132.08,9.78882769]
[1763428469598,23.85163385,132.09,132.08,16.03970252]
[1763428470208,24.54163385,132.09,132.08,9.78882769]
[1763428470404,24.54163385,132.09,132.08,16.04025847]
[1763428470607,24.54163385,132.09,132.08,9.78882769]
[1763428471285,30.2723077,132.09,132.07,6.25143078]
[1763428471492,6.42067385,132.08,132.06,0.2]
[1763428471694,5.73067385,132.07,132.06,0.2]
[1763428471893,6.42067385,132.07,132.06,0.2]
[1763428472087,24.54163385,132.07,132.06,0.2]
[1763428473011,18.12096,132.07,132.06,0.2]
[1763428473188,23.85163385,132.07,132.06,0.2]
[1763428473995,24.54163385,132.07,132.06,0.2]
[1763428474610,23.85163385,132.07,132.06,0.2]
[1763428474792,21.17102699,132.07,132.06,0.2]
[1763428475524,23.53109398,132.07,132.06,0.2]
[1763428477808,21.17102699,132.07,132.06,0.2]
[1763428479022,20.48102699,132.07,132.06,0.2]
[1763428479321,21.17102699,132.07,132.06,0.2]
[1763428480235,18.81096,132.07,132.06,0.2]
[1763428480419,21.17102699,132.07,132.06,0.2]
[1763428480625,23.53109398,132.07,132.06,0.2]
[1763428481023,21.17102699,132.07,132.06,0.2]
[1763428481829,23.53109398,132.07,132.06,0.2]
[1763428482127,21.17102699,132.07,132.06,0.2]
[1763428483926,21.16102699,132.07,132.06,0.2]
[1763428484636,20.48102699,132.07,132.06,0.2]
[1763428484843,21.16102699,132.07,132.06,0.2]
[1763428485139,3.04006699,132.07,132.06,0.2]
[1763428485318,21.16102699,132.07,132.06,0.2]
[1763428487316,23.52109398,132.07,132.06,0.2]
[1763428487837,21.16102699,132.07,132.06,0.2]
[1763428490541,20.48102699,132.07,132.06,0.2]
[1763428491045,21.16102699,132.07,132.06,0.2]
[1763428491217,20.48102699,132.07,132.06,0.2]
[1763428491423,21.16102699,132.07,132.06,0.2]
[1763428494855,22.48824003,132.07,132.06,0.2]
[1763428496555,26.17552006,132.07,132.06,0.2]
[1763428498758,8.05456006,132.07,132.06,0.2]
[1763428500346,3.68728003,132.12,132.07,9.78882769]
[1763428500534,3.68728003,132.09,132.07,16.04025847]
[1763428500731,3.68728003,132.08,132.07,16.04025847]
[1763428501148,3.68728003,132.08,132.07,16.70025847]
[1763428501455,3.68728003,132.08,132.07,16.69070383]
[1763428501760,3.68728003,132.09,132.07,16.69070383]
[1763428501959,3.68728003,132.08,132.07,16.03070383]
[1763428502136,18.12096,132.09,132.07,16.03070383]
[1763428502342,3.68728003,132.08,132.07,6.24187614]
[1763428502831,3.68728003,132.08,132.06,0.2]
[1763428503152,3.68728003,132.07,132.06,7.10187614]
[1763428503362,3.68728003,132.07,132.06,6.44187614]
[1763428503749,3.68728003,132.07,132.06,7.10187614]
[1763428503939,18.80096,132.09,132.06,7.10187614]
[1763428504141,3.68728003,132.07,132.06,7.10187614]
[1763428504540,3.68728003,132.07,132.06,6.44187614]
[1763428504737,3.68728003,132.12,132.06,7.10187614]
[1763428505041,21.80824003,132.09,132.07,0.66]
[1763428505438,3.68728003,132.09,132.07,6.90187614]
[1763428505873,3.68728003,132.08,132.07,6.24187614]
[1763428506033,3.68728003,132.08,132.06,6.44187614]
[1763428506364,3.68728003,132.07,132.06,0.2]
[1763428506738,18.80096,132.08,132.06,0.2]
[1763428507238,3.68728003,132.07,132.06,0.2]
[1763428507467,3.68728003,132.07,132.06,0.86]
[1763428507676,21.80824003,132.08,132.06,7.10187614]
[1763428507851,18.12096,132.08,132.07,0.66]
[1763428508163,21.80824003,132.1,132.07,0.66]
[1763428508361,0.68,132.14,132.08,16.03161447]
[1763428508362,21.80824003,132.09,132.08,16.03161447]
[1763428508738,21.80824003,132.09,132.08,16.69161447]
[1763428509265,22.48824003,132.09,132.08,16.03161447]
[1763428509451,21.80824003,132.09,132.08,9.78882769]
[1763428509653,22.48824003,132.09,132.08,9.78882769]
[1763428509843,21.80824003,132.09,132.08,9.78882769]
[1763428510659,21.80824003,132.09,132.07,9.78882769]
[1763428510858,18.12096,132.07,132.06,0.2]
[1763428511060,25.49552006,132.07,132.06,0.2]
[1763428511263,26.17552006,132.07,132.04,9.78882769]
[1763428511449,3.68728003,132.05,132.04,16.03161447]
[1763428511654,18.12096,132.04,132.03,0.66]
[1763428511857,3.68728003,132.05,132.03,6.90278678]
[1763428512066,3.68728003,132.05,132.03,8.96999377]
[1763428512365,21.80824003,132.07,132.04,8.96999377]
[1763428512672,3.68728003,132.07,132.06,16.04229049]
[1763428512848,18.12096,132.07,132.06,16.04229049]
[1763428513163,21.80824003,132.07,132.06,10.44882769]
[1763428513572,21.80824003,132.07,132.06,16.04446382]
[1763428513748,26.19552006,132.07,132.05,6.25563613]
[1763428513948,26.19552006,132.07,132.05,16.04446382]
[1763428513949,3.68728003,132.06,132.05,16.04446382]
[1763428514345,3.68728003,132.06,132.05,16.04659537]
[1763428514768,3.68728003,132.06,132.05,16.70659537]
[1763428514943,3.68728003,132.06,132.05,10.44882769]
[1763428515658,21.80824003,132.07,132.06,9.78882769]
[1763428515853,18.12096,132.07,132.06,10.44882769]
[1763428516056,18.12096,132.07,132.06,18.75882146]
[1763428516572,3.68728003,132.07,132.06,10.44882769]
[1763428517051,3.68728003,132.08,132.06,18.75882146]
[1763428517367,3.68728003,132.08,132.07,8.96999377]
[1763428518149,3.68728003,132.08,132.07,0.66]
[1763428518350,3.68728003,132.08,132.06,8.30999377]
[1763428518554,21.80824003,132.07,132.06,9.78882769]
[1763428518760,21.80824003,132.07,132.06,16.04221891]
[1763428518974,21.80824003,132.07,132.06,6.25339122]
[1763428518975,22.46824003,132.07,132.06,6.25339122]
[1763428519279,22.46824003,132.07,132.04,8.30999377]
[1763428519280,26.15552006,132.07,132.04,6.25339122]
[1763428519505,3.68728003,132.05,132.03,16.04221891]
[1763428519660,21.80824003,132.06,132.03,16.04221891]
[1763428519661,3.68728003,132.04,132.03,16.04221891]
[1763428519868,3.68728003,132.04,132.02,16.24221891]
[1763428519869,21.80824003,132.04,132.02,16.24221891]
[1763428520189,3.68728003,132.03,132.02,6.45339122]
[1763428520778,3.68728003,132.03,132.02,0.2]
[1763428520958,3.68728003,132.03,132.02,6.45339122]
[1763428521157,3.68728003,132.03,132.02,0.2]
[1763428522073,22.46824003,132.03,132.02,0.2]
[1763428523271,21.80824003,132.03,132.02,0.2]
[1763428523471,21.80824003,132.03,132.02,7.16339122]
[1763428524197,3.68728003,132.04,132.02,19.00882146]
[1763428524380,3.68728003,132.06,132.03,10.49882769]
[1763428524699,0.66,132.1,132.05,16.03860875]
[1763428524894,0.66,132.09,132.04,6.24978106]
[1763428525396,0.66,132.1,132.05,0.71]
[1763428525701,3.68728003,132.06,132.05,16.03860875]
[1763428526196,18.12096,132.04,132.03,16.03860875]
[1763428526493,21.80824003,132.04,132.03,16.03860875]
[1763428527205,4.34728003,132.04,132.02,0.2]
[1763428527491,21.80824003,132.03,132.02,0.2]
[1763428527694,22.46824003,132.03,132.02,0.2]
[1763428528006,4.34728003,132.03,132.02,0.2]
[1763428528373,22.46824003,132.03,132.02,0.2]
[1763428528797,27.9176627,132.03,132.02,0.2]
[1763428529098,27.2576627,132.03,132.02,0.2]
[1763428529473,0.66,132.07,132.02,10.69882769]
[1763428529678,9.1367027,132.03,132.02,16.94860875]
[1763428530500,9.1367027,132.03,132.02,16.23860875]
[1763428530686,9.1367027,132.03,132.02,0.2]
[1763428530898,18.12096,132.05,132.02,10.69882769]
[1763428531212,9.1367027,132.03,132.02,16.94860875]
[1763428531791,9.1367027,132.03,132.02,16.23860875]
[1763428532214,9.1367027,132.03,132.02,6.44978106]
[1763428532394,9.1367027,132.03,132.02,0.2]
[1763428532707,9.7967027,132.03,132.02,0.2]
[1763428533018,18.9334054,132.03,132.01,0.2]
[1763428533316,18.12096,132.0,131.99,0.2]
[1763428533504,36.3943654,132.0,131.99,0.2]
[1763428533714,18.9334054,132.0,131.99,0.2]
[1763428534548,9.7967027,132.0,131.99,0.2]
[1763428535287,9.1367027,132.0,131.99,0.2]
[1763428536022,0.66,132.05,131.99,10.69882769]
[1763428536321,2.0,132.1,132.01,9.78882769]
[1763428536322,9.1367027,132.02,132.01,9.78882769]
[1763428536487,27.2576627,132.02,132.01,9.78882769]
[1763428536692,9.1367027,132.02,132.01,0.71]
[1763428536890,9.1367027,132.02,132.01,6.95978106]
[1763428537125,9.1367027,132.02,132.01,10.49882769]
[1763428537316,9.1367027,132.03,132.01,16.73503763]
[1763428537520,27.2576627,132.04,132.03,9.78882769]
[1763428537697,9.1367027,132.04,132.03,9.78882769]
[1763428537896,9.1367027,132.04,132.01,6.23620994]
[1763428538097,18.12096,132.05,132.01,6.23620994]
[1763428538098,9.1367027,132.02,132.01,9.78882769]
[1763428538323,9.1367027,132.02,131.99,16.93503763]
[1763428538521,18.78096,132.05,132.0,0.71]
[1763428538720,18.12096,132.05,132.0,0.71]
[1763428538950,0.66,132.04,131.99,9.98882769]
[1763428539642,9.1367027,132.0,131.99,9.98882769]
[1763428539851,18.12096,132.05,131.99,9.98882769]
[1763428540154,9.1367027,132.0,131.99,16.22503763]
[1763428540359,9.1367027,132.0,131.99,16.93503763]
[1763428540645,9.1367027,132.01,131.99,16.93503763]
[1763428540869,0.66,132.09,132.01,9.78882769]
[1763428541052,9.1367027,132.05,132.02,6.23323554]
[1763428541221,0.66,132.09,132.03,9.78882769]
[1763428541425,9.1367027,132.05,132.03,10.49882769]
[1763428541662,9.1367027,132.05,132.04,0.71]
[1763428542127,9.1367027,132.06,132.05,9.78882769]
[1763428542446,27.2576627,132.06,132.05,9.78882769]
[1763428542643,9.1367027,132.06,132.05,9.78882769]
[1763428543229,9.1367027,132.06,132.02,9.78882769]
[1763428543230,18.12096,132.05,132.02,6.95323554]
[1763428543446,18.12096,132.05,132.03,9.78882769]
[1763428543654,9.1367027,132.04,132.03,0.72]
[1763428543949,9.1367027,132.04,132.03,10.50882769]
[1763428545359,18.12096,132.05,132.03,10.50882769]
[1763428545656,9.1367027,132.05,132.03,9.78882769]
[1763428546041,9.1367027,132.05,132.04,0.72]
[1763428546537,9.1367027,132.05,132.03,10.50882769]
[1763428546735,9.1367027,132.05,132.04,9.78882769]
[1763428547124,9.1367027,132.05,132.04,10.50882769]
[1763428547341,18.12096,132.09,132.04,10.50882769]
[1763428547546,9.1367027,132.05,132.04,10.50882769]
[1763428547847,27.2576627,132.05,132.04,9.78882769]
[1763428548046,27.2576627,132.05,132.04,10.50882769]
[1763428548748,27.2576627,132.05,132.03,9.78882769]
[1763428548932,9.1367027,132.04,132.03,10.50882769]
[1763428549133,27.2576627,132.05,132.04,0.72]
[1763428549337,27.2576627,132.05,132.03,0.72]
[1763428549543,9.1367027,132.04,132.03,0.72]
[1763428549740,27.2576627,132.05,132.03,0.72]
[1763428550241,27.2576627,132.05,132.03,6.95323554]
[1763428550649,9.1367027,132.04,132.03,6.95323554]
[1763428550847,9.1367027,132.04,132.03,0.72]
[1763428551047,27.2576627,132.05,132.03,0.72]
[1763428551246,9.1367027,132.04,132.02,6.23323554]
[1763428551551,9.1367027,132.03,132.02,0.72]
[1763428551942,9.1367027,132.04,132.03,9.78882769]
[1763428552151,27.2576627,132.05,132.03,9.78882769]
[1763428552454,18.12096,132.05,132.04,10.50882769]
[1763428552654,9.1367027,132.06,132.05,9.78882769]
[1763428552846,9.1367027,132.06,132.05,10.50882769]
[1763428553653,18.12096,132.04,132.03,10.50882769]
[1763428553832,27.2576627,132.04,132.03,9.78882769]
[1763428554330,27.2576627,132.04,132.03,10.50882769]
[1763428554537,27.2576627,132.04,132.02,9.78882769]
[1763428554844,18.12096,132.04,132.03,0.72]
[1763428555334,18.12096,132.04,132.02,10.50882769]
[1763428555536,18.12096,132.04,132.03,0.72]
[1763428555954,18.12096,132.04,132.03,6.95323554]
[1763428556156,18.12096,132.04,132.03,0.72]
[1763428556346,27.2576627,132.04,132.03,0.72]
[1763428556561,27.2576627,132.04,132.02,6.23323554]
[1763428556733,9.1367027,132.03,132.01,16.02206323]
[1763428556933,18.12096,132.04,132.01,16.02206323]
[1763428557237,5.73663444,132.03,132.02,0.72]
[1763428558349,18.12096,132.05,132.02,0.72]
[1763428558534,5.73663444,132.03,132.02,0.72]
[1763428559743,5.73663444,132.03,132.01,16.02206323]
[1763428559940,5.73663444,132.02,132.01,9.78882769]
[1763428560257,5.73663444,132.02,132.0,6.23323554]
[1763428560554,6.42663444,132.01,131.99,0.2]
[1763428560738,5.73663444,132.0,131.99,0.2]
[1763428560934,6.42663444,132.0,131.99,0.2]
[1763428561739,6.42663444,132.0,131.99,16.94206323]
[1763428561740,5.73663444,132.0,131.99,16.94206323]
[1763428562662,5.73663444,132.01,131.99,16.94206323]
[1763428562852,5.73663444,132.01,131.99,16.2417571]
[1763428563161,5.73663444,132.09,132.0,16.7617571]
[1763428563343,5.73663444,132.02,132.01,16.0417571]
[1763428563550,5.73663444,132.02,132.01,16.7617571]
[1763428564064,6.42663444,132.02,132.01,16.0417571]
[1763428564371,6.42663444,132.02,131.99,16.2417571]
[1763428564663,5.73663444,132.0,131.99,16.2417571]
[1763428564839,5.73663444,132.0,131.99,9.98882769]
[1763428565040,18.12096,132.06,131.99,10.70882769]
[1763428565366,0.69,132.05,132.01,6.25526217]
[1763428565548,0.69,132.05,132.0,6.25526217]
[1763428565947,0.69,132.05,131.99,16.24408986]
[1763428566148,18.12096,132.06,132.0,6.97526217]
[1763428566356,0.69,132.08,132.0,0.72]
[1763428566554,5.73663444,132.05,132.01,0.72]
[1763428566750,5.73663444,132.02,132.01,0.72]
[1763428566972,5.73663444,132.02,131.99,10.70882769]
[1763428567175,18.12096,132.02,132.01,6.25350675]
[1763428567356,18.12096,132.02,132.01,6.97350675]
[1763428567553,18.12096,132.02,132.01,0.72]
[1763428567753,23.85759444,132.02,132.0,6.2513535]
[1763428567960,18.12096,132.06,132.01,0.72]
[1763428568271,23.85759444,132.03,132.01,6.2513535]
[1763428568457,23.85759444,132.03,132.02,16.04018119]
[1763428568639,23.85759444,132.03,132.02,6.2513535]
[1763428568845,23.85759444,132.03,132.01,16.04018119]
[1763428569374,5.73663444,132.02,132.01,16.04018119]
[1763428569747,23.85759444,132.03,132.01,16.76018119]
[1763428570168,23.85759444,132.03,132.02,6.2513535]
[1763428570169,18.12096,132.03,132.02,6.2513535]
[1763428570551,23.85759444,132.03,132.02,6.2513535]
[1763428570869,18.12096,132.03,132.02,6.9713535]
[1763428571245,18.12096,132.03,132.02,6.2513535]
[1763428571660,23.85759444,132.03,132.02,6.2513535]
[1763428571872,23.85759444,132.03,132.01,9.78882769]
[1763428572082,23.85759444,132.03,132.01,16.04018119]
[1763428572083,5.73663444,132.02,132.01,16.04018119]
[1763428572476,5.73663444,132.02,132.01,9.78882769]
[1763428572477,24.53759444,132.02,132.01,9.78882769]
[1763428572661,23.85759444,132.02,132.01,9.78882769]
[1763428573368,23.85759444,132.02,132.0,6.2513535]
[1763428573369,24.53759444,132.02,132.0,6.2513535]
[1763428573570,6.41663444,132.01,131.99,6.4513535]
[1763428573760,5.73663444,132.0,131.99,0.2]
[1763428573962,6.41663444,132.0,131.99,0.2]
[1763428574581,0.68,132.05,132.0,9.78882769]
[1763428574775,5.73663444,132.02,132.0,10.44882769]
[1763428575072,5.73663444,132.02,132.0,16.70018119]
[1763428575570,5.73663444,132.04,132.01,10.44882769]
[1763428575774,5.73663444,132.09,132.03,9.78882769]
[1763428575978,5.73663444,132.05,132.03,9.78882769]
[1763428576180,5.73663444,132.05,132.03,10.44882769]
[1763428576353,5.73663444,132.05,132.03,16.70390078]
[1763428576554,24.53759444,132.04,132.02,6.25507309]
[1763428576767,18.12096,132.01,132.0,16.70390078]
[1763428577080,18.12096,132.02,132.01,10.44882769]
[1763428577855,23.85759444,132.04,132.01,10.44882769]
[1763428578071,23.85759444,132.04,132.03,9.78882769]
[1763428578354,24.54759444,132.04,132.03,9.78882769]
[1763428578567,24.54759444,132.04,132.03,10.49882769]
[1763428578568,23.85759444,132.04,132.03,10.49882769]
[1763428578877,18.12096,132.04,132.03,9.78882769]
[1763428579082,18.12096,132.04,132.03,10.49882769]
[1763428579381,18.12096,132.04,132.03,16.04345922]
[1763428579878,18.12096,132.04,132.03,16.75345922]
[1763428581174,104.7,132.13,132.03,16.75345922]
[1763428581175,5.73663444,132.1,132.03,24.57347113]
[1763428581364,5.73663444,132.16,132.03,18.12683669]
[1763428581365,2.32412712,132.04,132.03,18.12683669]
[1763428581568,2.32412712,132.04,132.03,15.52546213]
[1763428581771,5.73663444,132.11,132.03,15.52546213]
[1763428582084,18.12096,132.1,132.07,9.78882769]
[1763428582555,5.73663444,132.1,132.07,9.78882769]
[1763428582980,5.73663444,132.09,132.07,9.78882769]
[1763428583161,5.73663444,132.09,132.05,9.78882769]
[1763428583162,5.73663444,132.08,132.05,9.78882769]
[1763428583366,5.73663444,132.08,132.05,16.03977978]
[1763428583768,0.69,132.11,132.05,16.03977978]
[1763428583965,0.69,132.11,132.07,9.78882769]
[1763428583966,5.73663444,132.1,132.07,9.78882769]
[1763428584365,6.42663444,132.1,132.07,9.78882769]
[1763428584580,0.69,132.14,132.07,9.78882769]
[1763428584778,5.73663444,132.14,132.12,9.78882769]
[1763428584963,5.73663444,132.16,132.12,16.03977978]
[1763428585177,0.1,132.18,132.12,16.03977978]
[1763428585178,5.83663444,132.18,132.14,16.03977978]
[1763428585578,5.83663444,132.18,132.17,9.78882769]
[1763428585760,5.83663444,132.18,132.15,6.25095209]
[1763428585964,5.73663444,132.16,132.15,9.78882769]
[1763428586186,5.73663444,132.16,132.13,9.78882769]
[1763428586391,5.73663444,132.14,132.13,9.78882769]
[1763428586896,0.69,132.16,132.13,9.78882769]
[1763428587117,18.12096,132.12,132.11,6.25095209]
[1763428587279,23.85759444,132.12,132.11,9.78882769]
[1763428587481,24.54759444,132.12,132.11,9.78882769]
[1763428587967,24.54759444,132.12,132.08,9.78882769]
[1763428588172,18.12096,132.11,132.08,9.78882769]
[1763428588485,23.85759444,132.11,132.08,6.25095209]
[1763428589199,5.73663444,132.12,132.1,9.78882769]
[1763428589408,23.85759444,132.12,132.1,9.78882769]
[1763428589911,18.12096,132.12,132.1,16.03977978]
[1763428591096,23.85759444,132.12,132.1,9.78882769]
[1763428591467,24.54759444,132.12,132.1,9.78882769]
[1763428591670,24.54759444,132.12,132.08,6.25095209]
[1763428591982,6.42663444,132.11,132.1,9.78882769]
[1763428592320,6.42663444,132.11,132.07,18.12343047]
[1763428592321,18.12096,132.09,132.07,9.78882769]
[1763428592496,18.12096,132.09,132.0,13.21701351]
[1763428592497,23.85759444,132.08,132.03,6.25095209]
[1763428592673,18.12096,132.08,132.04,0.71]
[1763428593111,5.73663444,132.05,132.04,0.71]
[1763428593437,5.73663444,132.05,132.02,0.71]
[1763428593736,5.73663444,132.04,132.02,0.71]
[1763428594295,18.72096,132.07,132.03,9.78882769]
[1763428594530,5.73663444,132.07,132.03,9.78882769]
[1763428594700,5.73663444,132.07,132.05,9.78882769]
[1763428595196,5.73663444,132.07,132.02,6.25095209]
[1763428595197,23.85759444,132.08,132.07,9.78882769]
[1763428596228,10.38882769,132.15,132.07,0.71]
[1763428596418,5.73663444,132.13,132.08,10.49882769]
[1763428596727,5.73663444,132.13,132.1,9.78882769]
[1763428596902,18.12096,132.11,132.1,9.78882769]
[1763428597098,5.73663444,132.13,132.1,9.78882769]
[1763428597304,5.73663444,132.12,132.08,9.78882769]
[1763428597509,5.73663444,132.11,132.08,9.78882769]
[1763428597724,5.73663444,132.11,132.09,0.71]
[1763428598024,23.85759444,132.13,132.1,9.78882769]
[1763428598231,5.73663444,132.16,132.1,9.78882769]
[1763428598232,18.12096,132.16,132.1,9.78882769]
[1763428598396,18.12096,132.11,132.09,9.78882769]
[1763428599026,5.73663444,132.13,132.1,0.71]
[1763428599409,5.73663444,132.14,132.1,0.71]
[1763428599717,5.73663444,132.13,132.1,0.71]
[1763428599923,18.12096,132.16,132.1,0.71]
[1763428600114,5.73663444,132.13,132.1,0.71]
[1763428600499,5.73663444,132.13,132.11,9.78882769]
[1763428600703,5.73663444,132.12,132.07,10.49882769]
[1763428601017,5.73663444,132.11,132.07,10.49882769]
[1763428601199,5.73663444,132.11,132.08,0.71]
[1763428601399,5.73663444,132.14,132.08,0.71]
[1763428601713,18.12096,132.11,132.08,6.96095209]
[1763428601922,18.12096,132.11,132.1,9.78882769]
[1763428602096,5.73663444,132.14,132.1,9.78882769]
[1763428602097,23.85759444,132.14,132.1,9.78882769]
[1763428602296,18.12096,132.14,132.12,9.78882769]
[1763428602493,5.73663444,132.15,132.12,9.78882769]
[1763428602697,0.7,132.18,132.14,9.78882769]
[1763428602924,5.73663444,132.16,132.14,9.78882769]
[1763428603125,0.1,132.18,132.16,9.78882769]
[1763428603324,0.1,132.18,132.17,10.47882769]
[1763428603516,0.1,132.18,132.17,9.78882769]
[1763428603822,18.22096,132.18,132.17,10.47882769]